[Event "Prague Festival-Challengers 2022"]
[Site "Prague"]
[Date "2022.06.09"]
[Round "2.1"]
[White "Keymer, Vincent"]
[Black "Sasikiran, Krishnan"]
[Result "1-0"]
[ECO "A13"]
[WhiteElo "2667"]
[BlackElo "2651"]
[Annotator "TA"]
[PlyCount "80"]
[EventDate "2022.06.07"]
[EventType "tourn"]
[EventCountry "CZE"]
[SourceTitle "playchess.com"]
[Source "ChessBase"]
[SourceQuality "1"]
[TimeControl "40/5400+30:1800+30"]

{[%evp 9,80,7,8,-6,16,6,16,19,20,16,20,12,19,19,27,25,35,13,29,9,20,25,25,0,0,-15,-16,-18,0,0,0,0,0,0,51,0,0,-9,-13,-28,18,6,72,-97,-79,-83,-11,-13,-7,-17,-28,-12,13,0,15,14,24,26,23,0,113,135,179,183,318,310,305,299,338,316,520,431,419]} 1. Nf3 {[%emt 0:00:06]} d5 {[%emt 0:00:14]} 2. e3 {[%emt 0:00:04]} Nf6 {[%emt 0:00:48]} 3. c4 {[%emt 0:00:05]} e6 {[%emt 0:00:23]} 4. b3 {[%emt 0:00:05]} b6 {[%emt 0:04:51]} 5. Bb2 {[%emt 0:02:37]} Bb7 {[%emt 0:03:55]} 6. g3 {[%emt 0:06:06] A13: English Opening: 1...e6.} Nbd7 {[%emt 0:08:01]} 7. Bg2 {[%emt 0:01:50]} Be7 {[%emt 0:08:45]} 8. cxd5 {[%emt 0:08:45] The position is equal.} exd5 {[%emt 0:02:19]} 9. O-O {[%emt 0:00:48]} O-O {[%emt 0:00:22]} 10. Nc3 {[%emt 0:02:27]} Re8 {[%emt 0:03:53]} 11. Rc1 {[%emt 0:07:16]} a6 {[%emt 0:07:29]} 12. Re1 {[%emt 0:05:29] [#]} Bf8 $146 {[%emt 0:08:30]} ({Predecessor:} 12... Nc5 13. d3 Ne6 14. Re2 Rc8 15. Rec2 c5 16. d4 Rc7 17. Ne2 Ne4 18. Ne5 f5 {1-0 (47) Keymer,V (2602)-Liang,A (2587) chess24.com INT 2021}) 13. Re2 {[%emt 0:07:23]} Rc8 {[%emt 0:04:13]} 14. d3 {[%emt 0:12:24][%cal Bd2d3,Bd3d4][%mdl 32]} c5 {[%emt 0:05:16][%cal Bc7c5,Bc5c4][%mdl 32]} 15. d4 {[%emt 0:00:06]} c4 {[%emt 0:02:05]} 16. a4 {[%emt 0:00:14] Prevents b5.} Ne4 {[%emt 0:05:03]} 17. Nd2 {[%emt 0:10:38]} Nxc3 {[%emt 0:02:34]} 18. Bxc3 {[%emt 0:00:03][%cal Od2c4]} b5 {[%emt 0:00:34]} 19. bxc4 {[%emt 0:01:32]} bxc4 {[%emt 0:00:54]} 20. e4 {[%emt 0:02:06]} dxe4 {[%emt 0:06:18]} 21. Nxe4 {[%emt 0:00:06][%cal Oe4d6]} Ba8 {[%emt 0:01:28]} (21... Bd5 $1 $11) 22. h4 {[%emt 0:06:36]} (22. d5 $14) 22... f5 $11 {[%emt 0:13:23]} 23. Ng5 {[%emt 0:00:06]} Bxg2 {[%emt 0:00:53]} 24. Kxg2 {[%emt 0:01:15]} Nf6 {[%emt 0:02:31]} (24... Nb6 $142) 25. Re5 $1 {[%emt 0:02:03]} h6 {[%emt 0:03:41]} (25... f4 $11) 26. Ba5 $2 {[%emt 0:05:44]} (26. Rxf5 $16 {[%cal Od4d5] is necessary to keep the advantage. d5! is the strong threat.} hxg5 27. hxg5) 26... Qd7 $17 {[%emt 0:01:12]} 27. Nf3 {[%emt 0:00:08]} Bd6 {[%emt 0:01:23]} (27... Ba3 $17 28. Rxe8+ Qxe8) 28. Rxe8+ $11 {[%emt 0:01:28]} Qxe8 {[%emt 0:00:03]} 29. Nd2 {[%emt 0:03:20]} Qe6 {[%emt 0:00:31] Hoping for ...Qd5+.} 30. Qf3 {[%emt 0:01:00]} Ne4 {[%emt 0:01:29]} 31. Nf1 {[%emt 0:02:19]} Qd5 {[%emt 0:02:03]} 32. Be1 {[%emt 0:01:44]} f4 {[%emt 0:00:51] Inhibits Ne3.} 33. Nd2 {[%emt 0:01:28][%cal Bf1d2,Bd2c4,Bc4d6][%mdl 32]} Nf6 {[%emt 0:00:26] aiming for ...c3.} 34. Rxc4 {[%emt 0:05:10]} Re8 {[%emt 0:00:04] [#]} (34... Qxf3+ $1 $11 35. Kxf3 Re8) 35. Rc6 $1 $16 {[%emt 0:01:11] Threatens to win with Qxd5+.} Qe6 {[%emt 0:01:02]} (35... Bb8 36. Qxd5+) 36. Nc4 {[%emt 0:00:53]} Qxe1 {[%emt 0:00:30]} (36... fxg3 $142 37. Nxd6 Rf8) 37. Nxd6 $18 {[%emt 0:00:05] Dancing on a razor blade.} Rf8 {[%emt 0:00:19]} 38. Qxf4 {[%emt 0:01:24] Active counter play!} Qe6 {[%emt 0:00:42]} 39. Qf5 {[%emt 0:00:47]} ({And not} 39. Rxa6 Ng4 40. d5 (40. Qe4 Qa2 $11) 40... Qxd5+ 41. Qe4 Qd2 42. Qe6+ (42. Qxg4 $2 Rxf2+ 43. Kh3 Rh2#) 42... Kh7 43. Qe4+ (43. Qxg4 $2 Rxf2+ 44. Kh3 Rh2#) 43... Kg8 $11) 39... Qe7 {[%emt 0:00:04]} (39... Qa2 40. Rc8 (40. Rxa6 $2 Ng4 $19) 40... Rxc8 41. Qxc8+ Kh7) 40. d5 {[%emt 0:00:00]} Kh8 {[%emt 0:00:00] Weighted Error Value: White=0.14 (very precise) /Black=0.30} 1-0

[Event "Prague Festival-Challengers 2022"]
[Site "Prague"]
[Date "2022.06.09"]
[Round "2.2"]
[White "Warmerdam, Max"]
[Black "Pechac, Jergus"]
[Result "1/2-1/2"]
[ECO "D78"]
[WhiteElo "2614"]
[BlackElo "2597"]
[Annotator "TA"]
[PlyCount "63"]
[EventDate "2022.06.07"]
[EventType "tourn"]
[EventCountry "CZE"]
[SourceTitle "playchess.com"]
[Source "ChessBase"]
[SourceQuality "1"]
[TimeControl "40/5400+30:1800+30"]

{[%evp 15,63,-36,-28,-24,0,2,0,-9,0,0,0,0,0,0,0,-39,0,0,0,0,0,0,13,0,0,0,0,0,0,0,0,0,0,0,0,0,0,0,0,-8,0,0,0,0,0,0,4,0,0,0]} 1. Nf3 {[%emt 0:00:05]} d5 {[%emt 0:00:10]} 2. g3 {[%emt 0:00:04]} g6 {[%emt 0:00:29]} 3. Bg2 {[%emt 0:00:08]} Bg7 {[%emt 0:00:05]} 4. d4 {[%emt 0:00:05]} Nf6 {[%emt 0:00:05]} 5. c4 {[%emt 0:00:08]} c6 {[%emt 0:00:23]} 6. O-O {[%emt 0:00:06]} O-O {[%emt 0:00:05]} 7. Nc3 {[%emt 0:00:04]} dxc4 {[%emt 0:00:20]} 8. e4 {[%emt 0:00:05] is the new trend.} b5 {[%emt 0:01:36]} 9. Qe2 {[%emt 0:00:05] D78: Fianchetto Grünfeld: 6 0-0 c6.} Bg4 {[%emt 0:00:43][%cal Oe7e5]} 10. e5 {[%emt 0:03:19]} Nd5 {[%emt 0:00:31]} 11. a4 $1 {[%emt 0:00:31][%cal Ba2a4,Ba4b5][%mdl 32] [#]} Bf5 $146 {[%emt 0:00:13]} ({Predecessor:} 11... Nd7 12. axb5 Nxc3 13. bxc3 cxb5 14. h3 Bf5 15. Ne1 Nb6 16. g4 Bd7 17. Bxa8 Qxa8 {0-1 (74) Matlakov,M (2674)-Bacrot,E (2638) Chess.com INT 2022}) 12. axb5 {[%emt 0:01:33]} Bd3 {[%emt 0:00:07]} 13. Qd1 {[%emt 0:00:04][%cal Oe5e6]} e6 {[%emt 0:00:05]} 14. Re1 {[%emt 0:04:53]} a5 {[%emt 0:00:09]} 15. Bd2 {[%emt 0:27:47]} Nxc3 {[%emt 0:04:29]} ({Better is} 15... cxb5 $15 16. Nxb5 Qb6) 16. bxc3 $11 {[%emt 0:01:25] Strongly threatening Ng5. The position is equal.} cxb5 {[%emt 0:00:07]} 17. Re3 {[%emt 0:00:36]} Nc6 {[%emt 0:02:44]} 18. Ne1 {[%emt 0:02:52][%csl LRc6,LRd3][%mdl 64] [#] Discovered Attack} Rc8 {[%emt 0:00:11]} 19. Nxd3 {[%emt 0:03:17]} cxd3 {[%emt 0:00:06]} 20. Qb1 {[%emt 0:01:21]} b4 {[%emt 0:00:53]} 21. Rxd3 {[%emt 0:01:26]} bxc3 {[%emt 0:01:53]} 22. Bxc3 {[%emt 0:00:43]} Nb4 {[%emt 0:00:09]} 23. Bxb4 {[%emt 0:01:59]} axb4 {[%emt 0:00:05]} 24. Ra4 {[%emt 0:06:52]} Rc4 {[%emt 0:01:24]} 25. Rxb4 {[%emt 0:01:36]} Rxb4 {[%emt 0:00:05]} 26. Qxb4 {[%emt 0:00:07]} Bxe5 $1 {[%emt 0:00:11]} 27. Qd2 {[%emt 0:03:52]} Bg7 {[%emt 0:00:13]} 28. d5 {[%emt 0:00:05]} exd5 {[%emt 0:00:03]} 29. Bxd5 {[%emt 0:00:07]} Qe7 {[%emt 0:00:37]} 30. h4 {[%emt 0:00:31]} h5 {[%emt 0:00:16]} 31. Qe3 {[%emt 0:00:13]} Qxe3 {[%emt 0:00:05]} 32. Rxe3 {[%emt 0:00:03] An even fight not without its subleties.  Weighted Error Value: White=0.03 (flawless) /Black=0.06 (flawless)} 1/2-1/2

[Event "Prague Festival-Challengers 2022"]
[Site "Prague"]
[Date "2022.06.09"]
[Round "2.3"]
[White "Abdusattorov, Nodirbek"]
[Black "Michalik, Peter"]
[Result "1-0"]
[ECO "C42"]
[WhiteElo "2661"]
[BlackElo "2579"]
[Annotator "TA"]
[PlyCount "65"]
[EventDate "2022.06.07"]
[EventType "tourn"]
[EventCountry "CZE"]
[SourceTitle "playchess.com"]
[Source "ChessBase"]
[SourceQuality "1"]
[TimeControl "40/5400+30:1800+30"]

{[%evp 18,65,35,6,49,4,11,-114,133,20,29,21,33,23,55,41,39,33,35,47,27,27,46,50,82,85,81,79,95,97,169,166,298,284,366,360,337,344,381,371,460,400,765,791,780,774,937,925,847,657]} 1. e4 {[%emt 0:00:19]} e5 {[%emt 0:00:05]} 2. Nf3 {[%emt 0:00:17]} Nf6 {[%emt 0:00:06]} 3. Nxe5 {[%emt 0:00:57]} d6 {[%emt 0:00:06]} 4. Nf3 {[%emt 0:00:09]} Nxe4 {[%emt 0:00:05]} 5. d4 {[%emt 0:00:44]} d5 {[%emt 0:00:09]} 6. Bd3 {[%emt 0:00:33]} Bd6 {[%emt 0:00:07]} 7. O-O {[%emt 0:00:08]} O-O {[%emt 0:00:05]} 8. c4 {[%emt 0:00:07]} c6 {[%emt 0:00:06]} 9. Re1 {[%emt 0:00:30]} Bf5 {[%emt 0:02:21]} 10. Qb3 {[%emt 0:00:25]} Qd7 {[%emt 0:04:43] now scores much better than the old 10...Na6. C42: Petroff Defence: 3 Nxe5 and unusual White 3rd moves.} 11. c5 {[%emt 0:00:14]} Bc7 {[%emt 0:04:44]} 12. Nc3 {[%emt 0:00:27] [#]} (12. Nh4 $11 {keeps the balance.}) 12... Nxc3 $146 {[%emt 0:18:34]} (12... Nxc5 $1 $17 {[%mdl 512] stays on course.} 13. Bxf5 (13. dxc5 Bxd3) 13... Nxb3 14. Bxd7 Nxa1) ({Predecessor:} 12... Re8 13. Be3 Na6 14. Ne2 f6 15. a3 g5 16. Qc2 h5 17. Rad1 h4 18. Nd2 Qh7 19. Nxe4 Bxe4 20. Bxe4 Qxe4 21. Qxe4 Rxe4 {½-½ (33) Giri,A (2772)-Vidit,S (2727) Wijk aan Zee 2022}) 13. Qxc3 {[%emt 0:17:03]} ({White has to play} 13. Bxf5 $16 Qxf5 14. Qxb7 (14. Qxc3 Nd7 $11) (14. bxc3 b6 $14)) 13... Na6 $11 {[%emt 0:06:47]} 14. Bd2 {[%emt 0:00:33]} Rae8 {[%emt 0:00:47]} 15. b4 {[%emt 0:00:14][%cal Bb2b4,Bb4b5][%mdl 32]} Bb8 {[%emt 0:15:46]} 16. a4 {[%emt 0:03:04]} (16. b5 $5 Bxd3 17. Qxd3 Rxe1+ 18. Rxe1 cxb5 19. Rb1 $14) 16... Nc7 {[%emt 0:02:57] Against b5} 17. b5 {[%emt 0:05:19]} Bxd3 {[%emt 0:02:38]} 18. Qxd3 {[%emt 0:00:23] Ne5 is the strong threat.} Rxe1+ {[%emt 0:01:43]} 19. Rxe1 {[%emt 0:00:09] Strongly threatening Ne5.} f6 {[%emt 0:00:04] Prevents Ne5.} 20. Rb1 {[%emt 0:12:38]} b6 {[%emt 0:05:27]} 21. Qc2 {[%emt 0:05:21] aiming for cxb6.} cxb5 {[%emt 0:11:38]} 22. axb5 {[%emt 0:00:13]} Rc8 {[%emt 0:02:38]} 23. c6 {[%emt 0:03:44] White is more active.} Qd6 {[%emt 0:01:29]} (23... Qg4 $16 24. Qd3 Qe4) 24. g3 $18 {[%emt 0:01:15]} Re8 {[%emt 0:00:52]} (24... Qe6 $142 25. Re1 Qf7) 25. Bf4 {[%emt 0:00:54]} Qa3 {[%emt 0:01:41]} 26. Bxc7 {[%emt 0:04:56]} Bxc7 {[%emt 0:00:05]} 27. Qf5 {[%emt 0:00:25]} Qd6 {[%emt 0:04:08]} 28. Re1 {[%emt 0:00:10]} Rd8 {[%emt 0:02:51]} 29. h4 {[%emt 0:04:24][%cal Bh2h4,Bh4h5][%mdl 32]} Qf8 {[%emt 0:03:27]} (29... g6 $142 30. Qg4 f5) 30. h5 {[%emt 0:00:42] White is clearly winning.} Qf7 {[%emt 0:00:19]} 31. Nh4 {[%emt 0:00:08][%cal Bf3h4,Bh4g6,Bg6e7][%mdl 32]} Bd6 {[%emt 0:01:13] [#]} 32. Ng6 $1 {[%emt 0:01:12][%mdl 512]} Bb4 {[%emt 0:03:08] [#]} (32... Bf8 33. Nf4) 33. Ne7+ $1 {[%emt 0:02:21][%mdl 512] Weighted Error Value: White=0.26 (precise) /Black=0.53} 1-0

[Event "Prague Festival-Challengers 2022"]
[Site "Prague"]
[Date "2022.06.09"]
[Round "2.4"]
[White "Stocek, Jiri"]
[Black "Niemann, Hans Moke"]
[Result "1-0"]
[ECO "E21"]
[WhiteElo "2533"]
[BlackElo "2656"]
[Annotator "TA"]
[PlyCount "51"]
[EventDate "2022.06.07"]
[EventType "tourn"]
[EventCountry "CZE"]
[SourceTitle "playchess.com"]
[Source "ChessBase"]
[SourceQuality "1"]
[TimeControl "40/5400+30:1800+30"]

{[%evp 13,51,6,22,12,0,0,95,60,120,120,125,106,88,91,88,95,100,88,81,60,80,55,118,118,121,118,116,122,74,25,359,282,274,250,601,572,983,971,902,902]} 1. d4 {[%emt 0:00:13]} Nf6 {[%emt 0:00:28]} 2. c4 {[%emt 0:00:18]} e6 {[%emt 0:00:31]} 3. Nf3 {[%emt 0:00:48]} b6 {[%emt 0:01:09]} 4. Nc3 {[%emt 0:00:51]} Bb4 {[%emt 0:05:12]} 5. Qb3 {[%emt 0:01:55]} c5 {[%emt 0:03:05]} 6. Bg5 {[%emt 0:02:34]} h6 {[%emt 0:09:04]} 7. Bh4 {[%emt 0:01:44]} Nc6 {[%emt 0:02:46]} 8. d5 {[%emt 0:04:41] E21: Nimzo-Indian: 4 Nf3.} Na5 {[%emt 0:12:42]} 9. Qc2 {[%emt 0:03:19]} Nxc4 {[%emt 0:10:02]} (9... exd5 $11 {remains equal.} 10. cxd5 O-O) 10. dxe6 $16 {[%emt 0:06:34] White is better.} dxe6 {[%emt 0:16:03] [#]} (10... Qe7 $1 $14) 11. Rd1 $146 {[%emt 0:11:55]} ({Predecessor:} 11. e4 b5 12. Bxc4 bxc4 13. e5 g5 14. Nxg5 Qd3 15. Qxd3 cxd3 16. Nxf7 Kxf7 17. Bxf6 {1-0 (39) Chatalbashev,B (2591)-Nikolov,S (2418) Albena 2011}) 11... Bd7 {[%emt 0:13:53]} 12. e3 {[%emt 0:02:13]} Nxb2 {[%emt 0:05:45]} 13. Qxb2 {[%emt 0:00:44] a3 is the strong threat.} Ne4 {[%emt 0:00:57]} 14. Qxb4 {[%emt 0:02:30]} cxb4 {[%emt 0:00:08]} 15. Nxe4 {[%emt 0:00:36]} ({Reject} 15. Bxd8 Nxc3 16. Bh4 Nxd1 17. Kxd1 Rc8 $15) 15... Qc7 {[%emt 0:03:05] Hoping for ...Ba4.} 16. Bg3 $36 {[%emt 0:06:29][%mdl 2048] White is pushing.} Qc2 {[%emt 0:00:25]} 17. Bd3 {[%emt 0:00:34][%cal Bf1d3,Bd3e4,Be4g6][%mdl 32]} Qxa2 {[%emt 0:00:39] [#]} (17... Qa4 $1 $14) 18. Nd6+ $1 {[%emt 0:01:05]} Ke7 {[%emt 0:00:26] [#]} 19. O-O $1 {[%emt 0:01:32]} Rhd8 {[%emt 0:05:44]} 20. Be4 {[%emt 0:23:24] Black must now prevent Ra1.} a5 {[%emt 0:00:26][%cal Of7f6]} 21. Nxf7 {[%emt 0:09:40] White is much more active.} Ba4 $2 {[%emt 0:05:02][%mdl 8192] Loses the game.} (21... Bc6 $1 $11 22. Ra1 (22. Nxd8 Bxe4 23. Rd2 Qa4 $15) (22. Bxc6 Rxd1 23. Rxd1 Qc2 $11) 22... Qxa1 23. Rxa1 Bxe4 24. Nxd8 Rxd8) 22. Nxd8 $18 {[%emt 0:02:53] Dancing on a razor blade.} Rxd8 {[%emt 0:00:32]} 23. Ra1 {[%emt 0:01:43]} Qc4 {[%emt 0:00:06]} (23... Qe2 24. Bh4+ (24. Rxa4 $2 Rd1 $19) 24... g5) 24. Bg6 {[%emt 0:01:11] A strong pair of Bishops. White is clearly winning.} Bc6 {[%emt 0:01:51]} 25. Ne5 {[%emt 0:02:57]} Qd5 {[%emt 0:00:47]} 26. Nxc6+ {[%emt 0:01:03] Weighted Error Value: White=0.03 (flawless) /Black=0.63} 1-0

[Event "Prague Festival-Challengers 2022"]
[Site "Prague"]
[Date "2022.06.09"]
[Round "2.5"]
[White "Hracek, Zbynek"]
[Black "Krzyzanowski, Marcin"]
[Result "1-0"]
[ECO "B31"]
[WhiteElo "2570"]
[BlackElo "2535"]
[Annotator "TA"]
[PlyCount "89"]
[EventDate "2022.06.07"]
[EventType "tourn"]
[EventCountry "CZE"]
[SourceTitle "playchess.com"]
[Source "ChessBase"]
[SourceQuality "1"]
[TimeControl "40/5400+30:1800+30"]

{[%evp 9,89,11,21,16,19,16,17,11,27,19,20,10,13,8,14,0,25,14,26,4,4,1,8,0,0,-1,0,-7,22,18,10,20,60,43,61,61,65,62,60,73,89,87,95,85,88,95,168,200,251,233,295,300,302,285,288,294,420,420,483,472,465,158,158,152,148,154,155,149,327,206,295,295,379,365,379,379,372,366,445,350,335,319]} 1. e4 {[%emt 0:00:06]} c5 {[%emt 0:00:07]} 2. Nf3 {[%emt 0:00:06]} Nc6 {[%emt 0:00:05]} 3. Bb5 {[%emt 0:03:52]} g6 {[%emt 0:00:12]} 4. O-O {[%emt 0:00:07]} Bg7 {[%emt 0:00:12]} 5. d3 {[%emt 0:02:53]} e5 {[%emt 0:06:40]} 6. Nc3 {[%emt 0:09:19] B31: Sicilian: 2...Nc6 3 Bb5 g6.} d6 {[%emt 0:01:35]} 7. Nd5 {[%emt 0:14:43]} h6 {[%emt 0:10:46]} 8. c3 {[%emt 0:08:19] [#] The position is equal.} a6 $146 {[%emt 0:05:43]} ({Predecessor:} 8... Nge7 9. d4 cxd4 10. cxd4 O-O 11. dxe5 dxe5 12. Be3 Nxd5 13. Qxd5 Be6 14. Qxd8 Rfxd8 15. Bxc6 bxc6 {½-½ (79) Vrana,J (2356)-Furman,B (2164) Olomouc 2013}) 9. Bc4 {[%emt 0:05:58]} Nge7 {[%emt 0:09:13]} 10. b4 {[%emt 0:03:46]} cxb4 {[%emt 0:01:30]} 11. cxb4 {[%emt 0:00:07]} O-O {[%emt 0:01:29]} 12. Bd2 {[%emt 0:03:21]} Kh7 {[%emt 0:04:40]} 13. Rc1 {[%emt 0:04:11]} Be6 {[%emt 0:03:57]} 14. a4 {[%emt 0:08:03]} Bxd5 {[%emt 0:11:09]} 15. exd5 {[%emt 0:00:07]} Nb8 {[%emt 0:00:07][%cal Bc6b8,Bb8d7,Bd7c5][%mdl 32]} 16. a5 {[%emt 0:12:24]} Nd7 {[%emt 0:00:49]} 17. Re1 {[%emt 0:01:25]} f5 {[%emt 0:00:51]} 18. Qb3 {[%emt 0:01:53]} Ng8 {[%emt 0:04:27]} 19. b5 {[%emt 0:01:52]} Nc5 {[%emt 0:00:40]} 20. Qb1 {[%emt 0:03:36]} e4 {[%emt 0:13:12]} 21. dxe4 {[%emt 0:00:11]} fxe4 {[%emt 0:00:06]} 22. Rxe4 {[%emt 0:00:08]} Nxe4 {[%emt 0:00:08]} 23. Qxe4 {[%emt 0:00:05]} Nf6 {[%emt 0:01:26]} 24. Qb1 {[%emt 0:03:19] aiming for bxa6.} Nd7 {[%emt 0:04:39]} 25. Bd3 {[%emt 0:01:40]} axb5 {[%emt 0:01:22]} 26. Bxg6+ {[%emt 0:02:01]} Kh8 {[%emt 0:00:07]} 27. Qxb5 {[%emt 0:01:12] White is much more active.} Nc5 {[%emt 0:06:47]} (27... Qf6 $16 28. Qb1 (28. Qxd7 Qxg6 29. Qxb7 Rab8 $11) 28... Ne5) 28. Bb1 {[%emt 0:01:40] This bishop pair is nice.} Qe7 {[%emt 0:07:51]} 29. Qc4 {[%emt 0:02:19]} Rae8 {[%emt 0:03:29]} 30. Nh4 {[%emt 0:02:01] [#] Threatens to win with Ng6+.} (30. Qc2 Qe4 $16) 30... Qe2 {[%emt 0:00:09]} 31. Ng6+ {[%emt 0:00:08]} Kg8 {[%emt 0:00:02]} 32. Nxf8 {[%emt 0:03:58] Dancing on a razor blade.} Qxd2 {[%emt 0:00:02]} (32... Qxc4 {was necessary.} 33. Rxc4 Re2) 33. Ne6 $18 {[%emt 0:00:06]} Nxe6 {[%emt 0:01:29]} 34. dxe6 {[%emt 0:00:02]} d5 {[%emt 0:01:43]} 35. Qc2 {[%emt 0:00:46] [#]} (35. Qc7 $18 {is more deadly. White wants to mate with Qf7+.} Rxe6 36. Qc8+ Kf7 37. Qd7+ (37. Rc7+ Kf6 $18) 37... Kf6 38. Qd8+ Re7 39. Rf1) 35... Qxc2 $16 {[%emt 0:00:20]} 36. Bxc2 {[%emt 0:00:02] Bb3 is the strong threat.} Rxe6 {[%emt 0:00:54][%mdl 4096] Endgame KRB-KRB} 37. Bb3 {[%emt 0:00:04]} Rd6 {[%emt 0:00:30]} 38. Rc5 {[%emt 0:02:15]} Bf8 $2 {[%emt 0:00:31] This move loses the game for Black.} (38... Kf8 $16 39. Bxd5 b6 40. axb6 Rxb6) 39. Rxd5 {[%emt 0:01:02]} Kg7 {[%emt 0:00:02]} (39... Kh8 $142 40. Rb5 Rc6) 40. Rb5 $18 {[%emt 0:00:00]} Rd7 {[%emt 0:00:00]} 41. Bd5 {[%emt 0:01:52]} Kf6 {[%emt 0:00:47]} 42. g3 {[%emt 0:00:14]} Rc7 {[%emt 0:01:23]} 43. Bxb7 {[%emt 0:02:49]} Rc1+ {[%emt 0:00:06]} 44. Kg2 {[%emt 0:00:05]} Bc5 {[%emt 0:00:02]} 45. a6 {[%emt 0:00:34] Weighted Error Value: White=0.17 (very precise) /Black=0.26 (precise)} 1-0

[Event "Prague Festival-Challengers 2022"]
[Site "Prague"]
[Date "2022.06.10"]
[Round "3.1"]
[White "Pechac, Jergus"]
[Black "Keymer, Vincent"]
[Result "1/2-1/2"]
[ECO "E08"]
[WhiteElo "2597"]
[BlackElo "2667"]
[Annotator "TA"]
[PlyCount "79"]
[EventDate "2022.06.07"]
[EventType "tourn"]
[EventCountry "CZE"]
[SourceTitle "playchess.com"]
[Source "ChessBase"]
[SourceQuality "1"]
[TimeControl "40/5400+30:1800+30"]

{[%evp 17,79,1,26,37,25,18,8,28,37,27,30,33,27,0,0,0,0,0,0,1,0,0,0,0,77,97,165,157,147,0,0,0,280,356,335,358,315,342,477,472,1088,1095,1092,1087,1070,1070,984,0,0,0,0,0,0,0,0,0,0,0,0,0,0,0,0,0]} 1. d4 {[%emt 0:00:42]} Nf6 {[%emt 0:00:06]} 2. c4 {[%emt 0:00:05]} e6 {[%emt 0:00:03]} 3. Nf3 {[%emt 0:00:58]} d5 {[%emt 0:00:16]} 4. g3 {[%emt 0:01:22]} Bb4+ {[%emt 0:00:19]} 5. Bd2 {[%emt 0:00:07]} Be7 {[%emt 0:00:05]} 6. Bg2 {[%emt 0:00:15]} O-O {[%emt 0:00:06]} 7. O-O {[%emt 0:00:23]} c6 {[%emt 0:00:05]} 8. Qc2 {[%emt 0:00:06]} Nbd7 {[%emt 0:00:27]} 9. Bf4 {[%emt 0:00:26]} a5 {[%emt 0:06:41]} 10. Rd1 {[%emt 0:00:37] E08: Closed Catalan: Main Line: 7 Qc2.} h6 {[%emt 0:04:28]} 11. Nc3 {[%emt 0:00:35] 11.Nc3 was played by the boomers.} dxc4 {[%emt 0:04:30]} 12. Nd2 {[%emt 0:00:53]} Nb6 {[%emt 0:03:15]} 13. e4 {[%emt 0:00:18][%mdl 1024] Inhibits Nfd5. White has compensation.} a4 {[%emt 0:11:41]} (13... Qxd4 $2 14. Nf3 Qc5 15. Be3 $18) 14. a3 {[%emt 0:00:08]} Bd7 {[%emt 0:01:14] [#]} (14... Qxd4 $2 15. e5 Qd3 16. Qxd3 cxd3 17. exf6 Bxf6 18. Nde4 $18) 15. Re1 $146 {[%emt 0:00:08]} ({Predecessor:} 15. Rac1 Re8 16. Nf3 c5 17. Qe2 cxd4 18. Nxd4 Qc8 19. Rd2 Bc6 20. Nxc6 bxc6 21. Be3 {0-1 (64) Ferre Perez,A (2187)-Tsikunov,A (2148) ICCF email 2018}) 15... Qc8 {[%emt 0:15:20]} 16. Rad1 {[%emt 0:00:09]} Rd8 {[%emt 0:04:25]} 17. h3 {[%emt 0:00:08]} c5 {[%emt 0:05:01]} 18. d5 {[%emt 0:00:08]} exd5 $1 {[%emt 0:00:46]} 19. Nxd5 {[%emt 0:00:08]} Nfxd5 {[%emt 0:03:21]} 20. exd5 {[%emt 0:00:08]} Bf8 {[%emt 0:12:10]} (20... Bf5 $11 21. Qc1 Bd6 22. Bxd6 Rxd6) 21. g4 $16 {[%emt 0:06:36] 0x0.0022fa32c7aedp-1022s more active pieces.} (21. Nxc4 Nxc4 22. Qxc4 Ra6 $11) 21... h5 {[%emt 0:03:24]} (21... Re8 $16) 22. Re5 $1 $18 {[%emt 0:00:14]} (22. Nxc4 Nxc4 23. Qxc4 b5 $11) (22. gxh5 Bxh3 23. Bf3 Bg4 $17) 22... hxg4 {[%emt 0:05:57]} (22... Bd6 $2 23. Rxh5 f5 24. Bxd6 $18) 23. Be4 {[%emt 0:10:20]} ({Much worse is} 23. Rh5 $6 g6 24. Rh4 Bg7 $14) (23. Ne4 $16) 23... Bd6 $11 {[%emt 0:05:21]} (23... gxh3 $2 24. Bh7+ Kh8 25. Rh5 $18) 24. Bh7+ {[%emt 0:00:08]} Kf8 $2 {[%emt 0:01:58][%mdl 8192] [#]} (24... Kh8 $1 $11 {and Black is okay.} 25. Rde1 f5 26. Rxf5 Bxf5 27. Bxf5 Qc7 28. Bxd6 Rxd6 29. hxg4 Rf8) 25. Ne4 $1 $18 {[%emt 0:03:39]} Bxe5 {[%emt 0:01:39]} 26. Bxe5 {[%emt 0:00:06] Hoping for Bd6+.} Bf5 {[%emt 0:03:04] [#]} 27. Qc3 $1 {[%emt 0:00:07]} f6 {[%emt 0:02:09]} (27... Bxh7 28. Bxg7+ Ke8 29. Nf6+ Ke7 30. Qe5+) (27... Nxd5 28. Bxg7+) 28. Bxf6 $1 {[%emt 0:00:21]} Bxh7 {[%emt 0:01:00]} (28... Nxd5 $142 29. Bxg7+ Ke8 30. Nf6+ (30. Qxc4 Bxh7 31. Rxd5 Rxd5 $11) 30... Nxf6 31. Qe5+ (31. Rxd8+ Qxd8 32. Bxf5 Qd1+ 33. Kh2 Qd6+ 34. Kg1 Nd5 $17) 31... Qe6 32. Bg6+ Ke7 33. Bxf6+ Kf8 34. Be7+ (34. Rxd8+ Rxd8 35. Bg7+ Kg8 $16) 34... Kg8 35. Qxe6+ Bxe6 36. Rxd8+ Rxd8) 29. Bxg7+ {[%emt 0:00:07]} Kg8 {[%emt 0:04:15][%cal Bf8g8,Bg8f7,Bf7e6,Be6f6,Bf6g5][%mdl 32] [#]} 30. Bh6 $1 {[%emt 0:01:27][%csl Gh6][%cal Rc3g7]} Qc7 {[%emt 0:00:30] Against Qg7+} 31. Nf6+ {[%emt 0:00:34]} Kf7 {[%emt 0:00:04]} 32. Nd7 $2 {[%emt 0:01:39]} ({Weaker is} 32. Nxh7 Kg6 33. Nf6 Qf7 34. Nxg4 Rg8 $16) (32. Nxg4 $18 {White threatens Qg7+ and mate.} Nxd5 {[#]} 33. Rxd5 $1 {[%mdl 512]} Rxd5 34. Qg7+ Ke6 35. Qxc7) 32... Nxd5 $1 $11 {[%emt 0:00:54] The position is equal.} 33. Qg7+ {[%emt 0:02:44]} Ke6 {[%emt 0:00:01]} 34. Qxh7 {[%emt 0:16:08] Threatening mate with Re1+. Really sharp!} Rxd7 {[%emt 0:01:42]} 35. Re1+ $1 {[%emt 0:27:32]} Kf6 {[%emt 0:00:03]} 36. Bg5+ $1 {[%emt 0:00:07][%mdl 64] Decoy} Kxg5 {[%emt 0:00:04]} 37. h4+ {[%emt 0:00:06]} Kf6 {[%emt 0:00:10]} 38. Qh6+ {[%emt 0:00:05]} Kf7 {[%emt 0:00:06]} 39. Qh7+ {[%emt 0:00:05]} Kf6 {[%emt 0:00:16]} 40. Qh6+ {[%emt 0:00:00] Blacks defense is rewarded with a draw.  Weighted Error Value: White=0.16 (very precise) /Black=0.38} 1/2-1/2